Workbook

Sheet Inputs >>>

Sheet Inputs and Assumptions
A1: Inputs and Assumptions
A4: Inputs
A6: Table 1 - Type 6 meter population (000's) as at July 2018
A7: Network | B7: Electro-mechanical | C7: Electronic | D7: Total
A8: Energex | B8: 1353 | C8: 770.8 | D8: =Table1[[#This Row],[Electro-mechanical]]+Table1[[#This Row],[Electronic]] -> 2123.8
A9: Ergon Energy | B9: 800 | C9: 376.8 | D9: =Table1[[#This Row],[Electro-mechanical]]+Table1[[#This Row],[Electronic]] -> 1176.8
A10: Total | B10: =SUBTOTAL(109,B8:B9) -> 2153 | C10: =SUBTOTAL(109,C8:C9) -> 1147.6 | D10: =Table1[[#This Row],[Electro-mechanical]]+Table1[[#This Row],[Electronic]] -> 3300.6
A13: Meter Population (millions)
A14: Year | B14: 2017-18 | C14: 2018-19 | D14: 2019-20 | E14: 2020-21 | F14: 2021-22 | G14: 2022-23 | H14: 2023-24 | I14: 2024-25
A15: Energex Meters | B15: =B21/1000000 -> 2.09299 | C15: =B15*(1-'Inputs and Assumptions'!$B$59) -> 2.0302003 | D15: =C15*(1-'Inputs and Assumptions'!$B$59) -> 1.969294291 | E15: =D15*(1-'Inputs and Assumptions'!$B$59) -> 1.910215462 | F15: =E15*(1-'Inputs and Assumptions'!$B$59) -> 1.852908998 | G15: =F15*(1-'Inputs and Assumptions'!$B$59) -> 1.797321728 | H15: =G15*(1-'Inputs and Assumptions'!$B$59) -> 1.743402077 | I15: =H15*(1-'Inputs and Assumptions'!$B$59) -> 1.691100014
A16: Ergon Meters | B16: =B22/1000000 -> 1.148459 | C16: =B16*(1-'Inputs and Assumptions'!$B$60) -> 1.05658228 | D16: =C16*(1-'Inputs and Assumptions'!$B$60) -> 0.9720556976 | E16: =D16*(1-'Inputs and Assumptions'!$B$60) -> 0.8942912418 | F16: =E16*(1-'Inputs and Assumptions'!$B$60) -> 0.8227479424 | G16: =F16*(1-'Inputs and Assumptions'!$B$60) -> 0.7569281071 | H16: =G16*(1-'Inputs and Assumptions'!$B$60) -> 0.6963738585 | I16: =H16*(1-'Inputs and Assumptions'!$B$60) -> 0.6406639498
A19: Meter Population
A20: Year | B20: 2017-18 | C20: 2018-19 | D20: 2019-20 | E20: 2020-21 | F20: 2021-22 | G20: 2022-23 | H20: 2023-24 | I20: 2024-25
A21: Energex Meters | B21: 2092990 | C21: =B21*(1-'Inputs and Assumptions'!$B$59) -> 2030200.3 | D21: =C21*(1-'Inputs and Assumptions'!$B$59) -> 1969294.291 | E21: =D21*(1-'Inputs and Assumptions'!$B$59) -> 1910215.462 | F21: =E21*(1-'Inputs and Assumptions'!$B$59) -> 1852908.998 | G21: =F21*(1-'Inputs and Assumptions'!$B$59) -> 1797321.728 | H21: =G21*(1-'Inputs and Assumptions'!$B$59) -> 1743402.077 | I21: =H21*(1-'Inputs and Assumptions'!$B$59) -> 1691100.014
A22: Ergon Meters | B22: 1148459 | C22: =B22*(1-'Inputs and Assumptions'!$B$60) -> 1056582.28 | D22: =C22*(1-'Inputs and Assumptions'!$B$60) -> 972055.6976 | E22: =D22*(1-'Inputs and Assumptions'!$B$60) -> 894291.2418 | F22: =E22*(1-'Inputs and Assumptions'!$B$60) -> 822747.9424 | G22: =F22*(1-'Inputs and Assumptions'!$B$60) -> 756928.1071 | H22: =G22*(1-'Inputs and Assumptions'!$B$60) -> 696373.8585 | I22: =H22*(1-'Inputs and Assumptions'!$B$60) -> 640663.9498
A25: Network Tariff Code Population
A26: Year | B26: 2017-18 | C26: 2018-19 | D26: 2019-20 | E26: 2020-21 | F26: 2021-22 | G26: 2022-23 | H26: 2023-24 | I26: 2024-25
A27: Energex
A28: Primary | B28: 1447342 | C28: =B28*(1-$B$64) -> 1403921.74 | D28: =C28*(1-$B$64) -> 1361804.088 | E28: 1320949.965 | F28: 1281321.466 | G28: 1242881.822 | H28: 1205595.368 | I28: 1169427.507
A29: Load Control | B29: 720779 | C29: =B29*(1-$B$64) -> 699155.63 | D29: =C29*(1-$B$64) -> 678180.9611 | E29: 657835.5323 | F29: 638100.4663 | G29: 618957.4523 | H29: 600388.7287 | I29: 582377.0669
A30: Solar PV | B30: 337758 | C30: =B30*(1-$B$64) -> 327625.26 | D30: =C30*(1-$B$64) -> 317796.5022 | E30: 308262.6071 | F30: 299014.7289 | G30: 290044.2871 | H30: 281342.9584 | I30: 272902.6697
A31: Ergon
A32: Primary | B32: 800176 | C32: =B32*(1-$B$65) -> 736161.92 | D32: =C32*(1-$B$65) -> 677268.9664 | E32: 623087.4491 | F32: 573240.4532 | G32: 527381.2169 | H32: 485190.7196 | I32: 446375.462
A33: Load Control | B33: 440974 | C33: =B33*(1-$B$65) -> 405696.08 | D33: 373240.3936 | E33: 343381.1621 | F33: 315910.6691 | G33: 290637.8156 | H33: 267386.7904 | I33: 245995.8471
A34: Solar PV | B34: 138519 | C34: 127437.48 | D34: 117242.4816 | E34: 107863.0831 | F34: 99234.03643 | G34: 91295.31351 | H34: 83991.68843 | I34: 77272.35336
A37: Customers by Tariff Code
A38: Year | B38: 2017-18 | C38: 2018-19 | D38: 2019-20 | E38: 2020-21 | F38: 2021-22 | G38: 2022-23 | H38: 2023-24 | I38: 2024-25
A39: Energex
A40: Primary (Non-capital) | B40: 1352354 | C40: =B40*(1-$B$69) -> 1311783.38 | D40: 1272429.879 | E40: 1234256.982 | F40: 1197229.273 | G40: 1161312.395 | H40: 1126473.023 | I40: =H40*(1-$B$69) -> 1092678.832
A41: Primary (Capital) | B41: 1377896 | C41: =B41 -> 1377896 | D41: 1377896 | E41: 1377896 | F41: 1377896 | G41: 1377896 | H41: 1377896 | I41: =H41 -> 1377896
A42: Load Control (Non-capital) | B42: 680744 | C42: =B42*(1-$B$69) -> 660321.68 | D42: 640512.0296 | E42: 621296.6687 | F42: 602657.7687 | G42: 584578.0356 | H42: 567040.6945 | I42: =H42*(1-$B$69) -> 550029.4737
A43: Load Control (Capital) | B43: 712568 | C43: =B43 -> 712568 | D43: 712568 | E43: 712568 | F43: 712568 | G43: 712568 | H43: 712568 | I43: =H43 -> 712568
A44: Solar PV (Non-capital) | B44: 312473 | C44: =B44*(1-$B$69) -> 303098.81 | D44: 294005.8457 | E44: 285185.6703 | F44: 276630.1002 | G44: 268331.1972 | H44: 260281.2613 | I44: =H44*(1-$B$69) -> 252472.8235
A45: Solar PV (Capital) | B45: 311438 | C45: =B45 -> 311438 | D45: 311438 | E45: 311438 | F45: 311438 | G45: 311438 | H45: 311438 | I45: =H45 -> 311438
A46: Ergon
A47: Primary (Non-capital) | B47: 780055 | C47: =B47*(1-$B$70) -> 717650.6 | D47: =C47*(1-$B$70) -> 660238.552 | E47: 607419.4678 | F47: 558825.9104 | G47: 514119.8376 | H47: 472990.2506 | I47: 435151.0305
A48: Primary (Capital) | B48: 777218 | C48: =B48 -> 777218 | D48: =C48 -> 777218 | E48: 777218 | F48: 777218 | G48: 777218 | H48: 777218 | I48: 777218
A49: Load Control (Non-capital) | B49: 431226 | C49: =B49*(1-$B$70) -> 396727.92 | D49: 364989.6864 | E49: 335790.5115 | F49: 308927.2706 | G49: 284213.0889 | H49: 261476.0418 | I49: 240557.9585
A50: Load Control (Capital) | B50: 433510 | C50: =B50 -> 433510 | D50: =C50 -> 433510 | E50: 433510 | F50: 433510 | G50: 433510 | H50: 433510 | I50: 433510
A51: Solar PV (Non-capital) | B51: 137274 | C51: 126292.08 | D51: 116188.7136 | E51: 106893.6165 | F51: 98342.12719 | G51: 90474.75702 | H51: 83236.77645 | I51: 76577.83434
A52: Solar PV (Capital) | B52: 122277 | C52: =B52 -> 122277 | D52: =C52 -> 122277 | E52: 122277 | F52: 122277 | G52: 122277 | H52: 122277 | I52: 122277
A56: Assumptions
A58: Meter Decline Rate
A59: Energex Meter Decline Rate | B59: 0.03
A60: Ergon Meter Decline Rate | B60: 0.08
A63: NTC Decline Rate
A64: Energex NTC Decline Rate | B64: 0.03
A65: Ergon NTC Decline Rate | B65: 0.08
A68: Customer Decline Rate
A69: Energex Customer Decline Rate | B69: 0.03
A70: Ergon Customer Decline Rate | B70: 0.08
A73: Inflation
A74: Year | B74: 2017-18 | C74: 2018-19 | D74: 2019-20 | E74: 2020-21 | F74: 2021-22 | G74: 2022-23 | H74: 2023-24 | I74: 2024-25
A75: Inflation Assumption (CPI % increase) (constant) | E75: 0.0242 | F75: 0.0242 | G75: 0.0242 | H75: 0.0242 | I75: 0.0242
A76: Cumulative Inflation Index (CPI end period) | D76: 1 | E76: =D76*(1+E75) -> 1.0242 | F76: =E76*(1+F75) -> 1.04898564 | G76: 1.074371092 | H76: 1.100370873 | I76: 1.126999848
A79: WACC
A80: Year | B80: 2017-18 | C80: 2018-19 | D80: 2019-20 | E80: 2020-21 | F80: 2021-22 | G80: 2022-23 | H80: 2023-24 | I80: 2024-25
A81: Time Varying Nominal Vanilla WACC | E81: 0.0545880827 | F81: 0.05428810346 | G81: 0.05398812423 | H81: 0.05368814499 | I81: 0.05338816576

Sheet Outputs >>>

Sheet (EGX&EGN) Building Blocks
A1: Building Block Components
A4: Energex | J4: Ergon
A6: Building Blocks ($m, nominal) | J6: Building Blocks ($m, nominal)
B7: 2020-21 | C7: 2021-22 | D7: 2022-23 | E7: 2023-24 | F7: 2024-25 | H7: Total | K7: 2020-21 | L7: 2021-22 | M7: 2022-23 | N7: 2023-24 | O7: 2024-25 | Q7: Total
A8: Return on Capital | B8: ='[32]Revenue summary'!G7 -> 18.50493994 | C8: ='[32]Revenue summary'!H7 -> 17.1379257 | D8: ='[32]Revenue summary'!I7 -> 15.70939441 | E8: ='[32]Revenue summary'!J7 -> 14.23059224 | F8: ='[32]Revenue summary'!K7 -> 12.67955889 | H8: =SUM(B8:F8) -> 78.26241119 | J8: Return on Capital | K8: ='[33]Revenue summary'!G7 -> 4.514430702 | L8: ='[33]Revenue summary'!H7 -> 4.360165048 | M8: ='[33]Revenue summary'!I7 -> 4.178430791 | N8: ='[33]Revenue summary'!J7 -> 3.951442738 | O8: ='[33]Revenue summary'!K7 -> 3.655648164 | Q8: =SUM(K8:O8) -> 20.66011744
A9: Return of Capital (regulatory depreciation) | B9: ='[32]Revenue summary'!G8 -> 24.60715542 | C9: ='[32]Revenue summary'!H8 -> 26.16092057 | D9: ='[32]Revenue summary'!I8 -> 27.79356678 | E9: ='[32]Revenue summary'!J8 -> 29.52349224 | F9: ='[32]Revenue summary'!K8 -> 30.61857835 | H9: =SUM(B9:F9) -> 138.7037134 | J9: Return of Capital (regulatory depreciation) | K9: ='[33]Revenue summary'!G8 -> 6.128776999 | L9: ='[33]Revenue summary'!H8 -> 6.857245958 | M9: ='[33]Revenue summary'!I8 -> 7.618011409 | N9: ='[33]Revenue summary'!J8 -> 8.397124334 | O9: ='[33]Revenue summary'!K8 -> 8.657481619 | Q9: =SUM(K9:O9) -> 37.65864032
A10: Operating Expenditure | B10: ='[32]Revenue summary'!G9 -> 19.67665234 | C10: ='[32]Revenue summary'!H9 -> 19.61898106 | D10: ='[32]Revenue summary'!I9 -> 19.59524161 | E10: ='[32]Revenue summary'!J9 -> 19.58408776 | F10: ='[32]Revenue summary'!K9 -> 19.58202564 | H10: 98.0569884 | J10: Operating Expenditure | K10: ='[33]Revenue summary'!G9 -> 29.58491508 | L10: ='[33]Revenue summary'!H9 -> 27.78280095 | M10: ='[33]Revenue summary'!I9 -> 26.19611724 | N10: ='[33]Revenue summary'!J9 -> 24.76318357 | O10: ='[33]Revenue summary'!K9 -> 23.46519986 | Q10: 131.7922167
A11: Revenue Adjustments | B11: ='[32]Revenue summary'!G10 -> 0 | C11: ='[32]Revenue summary'!H10 -> 0 | D11: ='[32]Revenue summary'!I10 -> 0 | E11: ='[32]Revenue summary'!J10 -> 0 | F11: ='[32]Revenue summary'!K10 -> 0 | H11: 0 | J11: Revenue Adjustments | K11: ='[33]Revenue summary'!G10 -> 0 | L11: ='[33]Revenue summary'!H10 -> 0 | M11: ='[33]Revenue summary'!I10 -> 0 | N11: ='[33]Revenue summary'!J10 -> 0 | O11: ='[33]Revenue summary'!K10 -> 0 | Q11: 0
A12: Net Tax Allowance | B12: ='[32]Revenue summary'!G11 -> 1.938305913 | C12: ='[32]Revenue summary'!H11 -> 2.043594356 | D12: ='[32]Revenue summary'!I11 -> 2.151969109 | E12: ='[32]Revenue summary'!J11 -> 2.354192616 | F12: ='[32]Revenue summary'!K11 -> 2.399718816 | H12: 10.88778081 | J12: Net Tax Allowance | K12: ='[33]Revenue summary'!G11 -> 0.2033551683 | L12: ='[33]Revenue summary'!H11 -> 0.2194945888 | M12: ='[33]Revenue summary'!I11 -> 0.2381629303 | N12: ='[33]Revenue summary'!J11 -> 0.3586487997 | O12: ='[33]Revenue summary'!K11 -> 0.3642480255 | Q12: 1.383909512
A13: Annual Revenue Requirement (unsmoothed) | B13: ='[32]Revenue summary'!G12 -> 64.72705362 | C13: ='[32]Revenue summary'!H12 -> 64.96142168 | D13: ='[32]Revenue summary'!I12 -> 65.2501719 | E13: ='[32]Revenue summary'!J12 -> 65.69236486 | F13: ='[32]Revenue summary'!K12 -> 65.27988169 | H13: 325.9108938 | J13: Annual Revenue Requirement (unsmoothed) | K13: ='[33]Revenue summary'!G12 -> 40.43147795 | L13: ='[33]Revenue summary'!H12 -> 39.21970654 | M13: ='[33]Revenue summary'!I12 -> 38.23072237 | N13: ='[33]Revenue summary'!J12 -> 37.47039945 | O13: ='[33]Revenue summary'!K12 -> 36.14257767 | Q13: 191.494884
A15: Unsmoothed Revenue Allocation ($m, nominal) | J15: Unsmoothed Revenue Allocation ($m, nominal)
B16: 2020-21 | C16: 2021-22 | D16: 2022-23 | E16: 2023-24 | F16: 2024-25 | H16: Total | K16: 2020-21 | L16: 2021-22 | M16: 2022-23 | N16: 2023-24 | O16: 2024-25 | Q16: Total
A17: Non-Capital Revenue (unsmoothed) | B17: =B10 -> 19.67665234 | C17: =C10 -> 19.61898106 | D17: 19.59524161 | E17: 19.58408776 | F17: 19.58202564 | H17: =SUM(B17:F17) -> 98.0569884 | J17: Non-Capital Revenue (unsmoothed) | K17: =K10 -> 29.58491508 | L17: =L10 -> 27.78280095 | M17: 26.19611724 | N17: 24.76318357 | O17: 23.46519986 | Q17: =SUM(K17:O17) -> 131.7922167
A18: Capital Revenue (unsmoothed) | B18: =B8+B9+B12 -> 45.05040128 | C18: =C8+C9+C12 -> 45.34244063 | D18: 45.65493029 | E18: 46.10827711 | F18: 45.69785605 | H18: =SUM(B18:F18) -> 227.8539054 | J18: Capital Revenue (unsmoothed) | K18: =K8+K9+K12 -> 10.84656287 | L18: =L8+L9+L12 -> 11.4369056 | M18: 12.03460513 | N18: 12.70721587 | O18: 12.67737781 | Q18: =SUM(K18:O18) -> 59.70266728
A19: Annual Revenue Requirement (unsmoothed) | B19: =B17+B18 -> 64.72705362 | C19: =C17+C18 -> 64.96142168 | D19: 65.2501719 | E19: 65.69236486 | F19: 65.27988169 | H19: 325.9108938 | J19: Annual Revenue Requirement (unsmoothed) | K19: =K17+K18 -> 40.43147795 | L19: =L17+L18 -> 39.21970654 | M19: =M17+M18 -> 38.23072237 | N19: =N17+N18 -> 37.47039945 | O19: =O17+O18 -> 36.14257767 | Q19: 191.494884
A21: Building Blocks ($m, real 2019-20) | J21: Building Blocks ($m, real 2019-20)
B22: 2020-21 | C22: 2021-22 | D22: 2022-23 | E22: 2023-24 | F22: 2024-25 | H22: Total | K22: 2020-21 | L22: 2021-22 | M22: 2022-23 | N22: 2023-24 | O22: 2024-25 | Q22: Total
A23: Return on Capital | B23: =B8/'Inputs and Assumptions'!$E$76 -> 18.06770157 | C23: =C8/'Inputs and Assumptions'!$F$76 -> 16.33761707 | D23: =D8/'Inputs and Assumptions'!$G$76 -> 14.62194443 | E23: =E8/'Inputs and Assumptions'!$H$76 -> 12.93254174 | F23: =F8/'Inputs and Assumptions'!$I$76 -> 11.25071925 | H23: =SUM(B23:F23) -> 73.21052406 | J23: Return on Capital | K23: =K8/'Inputs and Assumptions'!$E$76 -> 4.407762841 | L23: =L8/'Inputs and Assumptions'!$F$76 -> 4.156553609 | M23: =M8/'Inputs and Assumptions'!$G$76 -> 3.889187656 | N23: =N8/'Inputs and Assumptions'!$H$76 -> 3.591009936 | O23: =O8/'Inputs and Assumptions'!$I$76 -> 3.243698897 | Q23: =SUM(K23:O23) -> 19.28821294
A24: Return of Capital (regulatory depreciation) | B24: =B9/'Inputs and Assumptions'!$E$76 -> 24.02573269 | C24: =C9/'Inputs and Assumptions'!$F$76 -> 24.93925519 | D24: =D9/'Inputs and Assumptions'!$G$76 -> 25.86961523 | E24: =E9/'Inputs and Assumptions'!$H$76 -> 26.83049231 | F24: =F9/'Inputs and Assumptions'!$I$76 -> 27.1682187 | H24: =SUM(B24:F24) -> 128.8333141 | J24: Return of Capital (regulatory depreciation) | K24: =K9/'Inputs and Assumptions'!$E$76 -> 5.983965045 | L24: =L9/'Inputs and Assumptions'!$F$76 -> 6.537025577 | M24: =M9/'Inputs and Assumptions'!$G$76 -> 7.090670497 | N24: =N9/'Inputs and Assumptions'!$H$76 -> 7.631176489 | O24: =O9/'Inputs and Assumptions'!$I$76 -> 7.681883573 | Q24: =SUM(K24:O24) -> 34.92472118
A25: Operating Expenditure | B25: =B10/'Inputs and Assumptions'!$E$76 -> 19.21172851 | C25: =C10/'Inputs and Assumptions'!$F$76 -> 18.70281185 | D25: =D10/'Inputs and Assumptions'!$G$76 -> 18.23880198 | E25: =E10/'Inputs and Assumptions'!$H$76 -> 17.79771552 | F25: =F10/'Inputs and Assumptions'!$I$76 -> 17.37535783 | H25: 91.32641569 | J25: Operating Expenditure | K25: =K10/'Inputs and Assumptions'!$E$76 -> 28.88587686 | L25: =L10/'Inputs and Assumptions'!$F$76 -> 26.48539683 | M25: =M10/'Inputs and Assumptions'!$G$76 -> 24.3827458 | N25: =N10/'Inputs and Assumptions'!$H$76 -> 22.50439755 | O25: =O10/'Inputs and Assumptions'!$I$76 -> 20.82094324 | Q25: 123.0793603
A26: Revenue Adjustments | B26: =B11/'Inputs and Assumptions'!$E$76 -> 0 | C26: =C11/'Inputs and Assumptions'!$F$76 -> 0 | D26: =D11/'Inputs and Assumptions'!$G$76 -> 0 | E26: =E11/'Inputs and Assumptions'!$H$76 -> 0 | F26: =F11/'Inputs and Assumptions'!$I$76 -> 0 | H26: 0 | J26: Revenue Adjustments | K26: =K11/'Inputs and Assumptions'!$E$76 -> 0 | L26: =L11/'Inputs and Assumptions'!$F$76 -> 0 | M26: =M11/'Inputs and Assumptions'!$G$76 -> 0 | N26: =N11/'Inputs and Assumptions'!$H$76 -> 0 | O26: =O11/'Inputs and Assumptions'!$I$76 -> 0 | Q26: 0
A27: Net Tax Allowance | B27: =B12/'Inputs and Assumptions'!$E$76 -> 1.892507238 | C27: =C12/'Inputs and Assumptions'!$F$76 -> 1.948162375 | D27: =D12/'Inputs and Assumptions'!$G$76 -> 2.003003547 | E27: =E12/'Inputs and Assumptions'!$H$76 -> 2.139453773 | F27: =F12/'Inputs and Assumptions'!$I$76 -> 2.12929826 | H27: 10.11242519 | J27: Net Tax Allowance | K27: =K12/'Inputs and Assumptions'!$E$76 -> 0.1985502522 | L27: =L12/'Inputs and Assumptions'!$F$76 -> 0.2092446078 | M27: =M12/'Inputs and Assumptions'!$G$76 -> 0.2216765994 | N27: =N12/'Inputs and Assumptions'!$H$76 -> 0.3259344722 | O27: =O12/'Inputs and Assumptions'!$I$76 -> 0.3232014859 | Q27: 1.278607417
A28: Annual Revenue Requirement (unsmoothed) | B28: =B13/'Inputs and Assumptions'!$E$76 -> 63.19767001 | C28: =C13/'Inputs and Assumptions'!$F$76 -> 61.92784649 | D28: =D13/'Inputs and Assumptions'!$G$76 -> 60.73336518 | E28: =E13/'Inputs and Assumptions'!$H$76 -> 59.70020334 | F28: =F13/'Inputs and Assumptions'!$I$76 -> 57.92359405 | H28: 303.4826791 | J28: Annual Revenue Requirement (unsmoothed) | K28: =K13/'Inputs and Assumptions'!$E$76 -> 39.476155 | L28: =L13/'Inputs and Assumptions'!$F$76 -> 37.38822063 | M28: =M13/'Inputs and Assumptions'!$G$76 -> 35.58428055 | N28: =N13/'Inputs and Assumptions'!$H$76 -> 34.05251844 | O28: =O13/'Inputs and Assumptions'!$I$76 -> 32.06972719 | Q28: 178.5709018
A30: Unsmoothed Revenue Allocation ($m, real 2019-20) | J30: Unsmoothed Revenue Allocation ($m, real 2019-20)
B31: 2020-21 | C31: 2021-22 | D31: 2022-23 | E31: 2023-24 | F31: 2024-25 | H31: Total | K31: 2020-21 | L31: 2021-22 | M31: 2022-23 | N31: 2023-24 | O31: 2024-25 | Q31: Total
A32: Non-Capital Revenue (unsmoothed) | B32: =B25 -> 19.21172851 | C32: =C25 -> 18.70281185 | D32: 18.23880198 | E32: 17.79771552 | F32: 17.37535783 | H32: =SUM(B32:F32) -> 91.32641569 | J32: Non-Capital Revenue (unsmoothed) | K32: =K25 -> 28.88587686 | L32: =L25 -> 26.48539683 | M32: 24.3827458 | N32: 22.50439755 | O32: 20.82094324 | Q32: =SUM(K32:O32) -> 123.0793603
A33: Capital Revenue (unsmoothed) | B33: =B23+B24+B27 -> 43.98594149 | C33: =C23+C24+C27 -> 43.22503464 | D33: 42.4945632 | E33: 41.90248782 | F33: 40.54823621 | H33: =SUM(B33:F33) -> 212.1562634 | J33: Capital Revenue (unsmoothed) | K33: =K23+K24+K27 -> 10.59027814 | L33: =L23+L24+L27 -> 10.90282379 | M33: 11.20153475 | N33: 11.5481209 | O33: 11.24878396 | Q33: =SUM(K33:O33) -> 55.49154154
A34: Annual Revenue Requirement (unsmoothed) | B34: =B32+B33 -> 63.19767001 | C34: =C32+C33 -> 61.92784649 | D34: =D32+D33 -> 60.73336518 | E34: =E32+E33 -> 59.70020334 | F34: =F32+F33 -> 57.92359405 | H34: 303.4826791 | J34: Annual Revenue Requirement (unsmoothed) | K34: =K32+K33 -> 39.476155 | L34: =L32+L33 -> 37.38822063 | M34: =M32+M33 -> 35.58428055 | N34: =N32+N33 -> 34.05251844 | O34: =O32+O33 -> 32.06972719 | Q34: 178.5709018

Sheet Energex Smoothed Charges
A1: Energex Smoothed Charges
F3: =IF(ROUND((Energex_Non_Capital_NPV_Difference+Energex_Capital_NPV_Difference),5)<>ROUND(0,5),"Charges not smoothed. Press button to smooth charges.", "Smoothing complete.") -> Charges not smoothed. Press button to smooth charges.
A5: Smoothed Charges
A7: Primary ($, nominal) | H7: Primary (cents per day, nominal)
B8: 2020-21 | C8: 2021-22 | D8: 2022-23 | E8: 2023-24 | F8: 2024-25 | I8: 2020-21 | J8: 2021-22 | K8: 2022-23 | L8: 2023-24 | M8: 2024-25
A9: Non-capital | B9: =B67*1000000/B39*(1-B34) -> 12.25569999 | C9: =B9*(1+C30)*(1-C34) -> 12.55228793 | D9: =C9*(1+D30)*(1-D34) -> 12.8560533 | E9: =D9*(1+E30)*(1-E34) -> 13.16716979 | F9: =E9*(1+F30)*(1-F34) -> 13.4858153 | H9: Non-capital | I9: =B9/365*100 -> 3.357726024 | J9: =C9/365*100 -> 3.438982994 | K9: 3.522206383 | L9: 3.607443777 | M9: 3.694743917
A10: Capital | B10: =B68*1000000/B39*(1-B35) -> 24.04140366 | C10: =B10*(1+C30)*(1-C35) -> 24.62320563 | D10: =C10*(1+D30)*(1-D35) -> 25.2190872 | E10: =D10*(1+E30)*(1-E35) -> 25.82938911 | F10: =E10*(1+F30)*(1-F35) -> 26.45446033 | H10: Capital | I10: =B10/365*100 -> 6.586685934 | J10: 6.746083734 | K10: 6.90933896 | L10: 7.076544963 | M10: 7.247797351
A11: Total | B11: =B9+B10 -> 36.29710365 | C11: =C9+C10 -> 37.17549356 | D11: 38.0751405 | E11: 38.9965589 | F11: 39.94027563 | H11: Total | I11: =I9+I10 -> 9.944411959 | J11: =J9+J10 -> 10.18506673 | K11: =K9+K10 -> 10.43154534 | L11: =L9+L10 -> 10.68398874 | M11: =M9+M10 -> 10.94254127
A13: Load Control ($, nominal) | H13: Load Control (cents per day, nominal)
B14: 2020-21 | C14: 2021-22 | D14: 2022-23 | E14: 2023-24 | F14: 2024-25 | I14: 2020-21 | J14: 2021-22 | K14: 2022-23 | L14: 2023-24 | M14: 2024-25
A15: Non-capital | B15: =B69*1000000/B40*(1-B34) -> 3.676709997 | C15: =B15*(1+C30)*(1-C34) -> 3.765686379 | D15: =C15*(1+D30)*(1-D34) -> 3.856815989 | E15: =D15*(1+E30)*(1-E34) -> 3.950150936 | F15: =E15*(1+F30)*(1-F34) -> 4.045744589 | H15: Non-capital | I15: =B15/365*100 -> 1.007317807 | J15: =C15/365*100 -> 1.031694898 | K15: =D15/365*100 -> 1.056661915 | L15: =E15/365*100 -> 1.082233133 | M15: =F15/365*100 -> 1.108423175
A16: Capital | B16: =B70*1000000/B40*(1-B35) -> 7.212421098 | C16: =B16*(1+C30)*(1-C35) -> 7.386961688 | D16: =C16*(1+D30)*(1-D35) -> 7.565726161 | E16: =D16*(1+E30)*(1-E35) -> 7.748816734 | F16: =E16*(1+F30)*(1-F35) -> 7.936338099 | H16: Capital | I16: =B16/365*100 -> 1.97600578 | J16: 2.02382512 | K16: 2.072801688 | L16: 2.122963489 | M16: 2.174339205
A17: Total | B17: =B15+B16 -> 10.88913109 | C17: =C15+C16 -> 11.15264807 | D17: =D15+D16 -> 11.42254215 | E17: =E15+E16 -> 11.69896767 | F17: =F15+F16 -> 11.98208269 | H17: Total | I17: =I15+I16 -> 2.983323588 | J17: =J15+J16 -> 3.055520018 | K17: =K15+K16 -> 3.129463603 | L17: =L15+L16 -> 3.205196622 | M17: =M15+M16 -> 3.28276238
A19: Solar PV ($, nominal) | H19: Solar PV (cents per day, nominal)
B20: 2020-21 | C20: 2021-22 | D20: 2022-23 | E20: 2023-24 | F20: 2024-25 | I20: 2020-21 | J20: 2021-22 | K20: 2022-23 | L20: 2023-24 | M20: 2024-25
A21: Non-capital | B21: =B71*1000000/B41*(1-B34) -> 8.578989992 | C21: =B21*(1+C30)*(1-C34) -> 8.78660155 | D21: =C21*(1+D30)*(1-D34) -> 8.999237308 | E21: =D21*(1+E30)*(1-E34) -> 9.217018851 | F21: =E21*(1+F30)*(1-F34) -> 9.440070707 | H21: Non-capital | I21: =B21/365*100 -> 2.350408217 | J21: =C21/365*100 -> 2.407288096 | K21: =D21/365*100 -> 2.465544468 | L21: =E21/365*100 -> 2.525210644 | M21: =F21/365*100 -> 2.586320742
A22: Capital | B22: =B72*1000000/B41*(1-B35) -> 16.82898256 | C22: =B22*(1+C30)*(1-C35) -> 17.23624394 | D22: =C22*(1+D30)*(1-D35) -> 17.65336104 | E22: =D22*(1+E30)*(1-E35) -> 18.08057238 | F22: =E22*(1+F30)*(1-F35) -> 18.51812223 | H22: Capital | I22: =B22/365*100 -> 4.610680154 | J22: 4.722258614 | K22: 4.836537272 | L22: 4.953581474 | M22: 5.073458146
A23: Total | B23: =B21+B22 -> 25.40797255 | C23: =C21+C22 -> 26.02284549 | D23: =D21+D22 -> 26.65259835 | E23: =E21+E22 -> 27.29759123 | F23: =F21+F22 -> 27.95819294 | H23: Total | I23: =I21+I22 -> 6.961088371 | J23: =J21+J22 -> 7.12954671 | K23: =K21+K22 -> 7.30208174 | L23: =L21+L22 -> 7.478792118 | M23: =M21+M22 -> 7.659778887
A26: Calculations
A28: Inflation
A29: Year | B29: 2020-21 | C29: 2021-22 | D29: 2022-23 | E29: 2023-24 | F29: 2024-25
A30: Inflation Assumption (CPI % increase) (constant) | B30: ='Inputs and Assumptions'!E75 -> 0.0242 | C30: ='Inputs and Assumptions'!F75 -> 0.0242 | D30: ='Inputs and Assumptions'!G75 -> 0.0242 | E30: ='Inputs and Assumptions'!H75 -> 0.0242 | F30: ='Inputs and Assumptions'!I75 -> 0.0242
A32: X-Factor (used to determine annual metering charges)
A33: Year | B33: 2020-21 | C33: 2021-22 | D33: 2022-23 | E33: 2023-24 | F33: 2024-25
A34: X-Factor (non-capital) | B34: -0.0800830549 | C34: 0 | D34: 0 | E34: 0 | F34: 0
A35: X-Factor (capital) | B35: 0.07459594018 | C35: 0 | D35: 0 | E35: 0 | F35: 0
A37: Network Tariff Code (NTC) | H37: Customers by Tariff Code
A38: Year | B38: 2020-21 | C38: 2021-22 | D38: 2022-23 | E38: 2023-24 | F38: 2024-25 | H38: Year | I38: 2020-21 | J38: 2021-22 | K38: 2022-23 | L38: 2023-24 | M38: 2024-25
A39: Primary | B39: ='Inputs and Assumptions'!E28 -> 1320949.965 | C39: ='Inputs and Assumptions'!F28 -> 1281321.466 | D39: ='Inputs and Assumptions'!G28 -> 1242881.822 | E39: ='Inputs and Assumptions'!H28 -> 1205595.368 | F39: ='Inputs and Assumptions'!I28 -> 1169427.507 | H39: Primary (Non-capital) | I39: ='Inputs and Assumptions'!E40 -> 1234256.982 | J39: ='Inputs and Assumptions'!F40 -> 1197229.273 | K39: ='Inputs and Assumptions'!G40 -> 1161312.395 | L39: ='Inputs and Assumptions'!H40 -> 1126473.023 | M39: ='Inputs and Assumptions'!I40 -> 1092678.832
A40: Load Control | B40: ='Inputs and Assumptions'!E29 -> 657835.5323 | C40: ='Inputs and Assumptions'!F29 -> 638100.4663 | D40: ='Inputs and Assumptions'!G29 -> 618957.4523 | E40: ='Inputs and Assumptions'!H29 -> 600388.7287 | F40: ='Inputs and Assumptions'!I29 -> 582377.0669 | H40: Primary (Capital) | I40: ='Inputs and Assumptions'!E41 -> 1377896 | J40: ='Inputs and Assumptions'!F41 -> 1377896 | K40: ='Inputs and Assumptions'!G41 -> 1377896 | L40: ='Inputs and Assumptions'!H41 -> 1377896 | M40: ='Inputs and Assumptions'!I41 -> 1377896
A41: Solar PV | B41: ='Inputs and Assumptions'!E30 -> 308262.6071 | C41: ='Inputs and Assumptions'!F30 -> 299014.7289 | D41: ='Inputs and Assumptions'!G30 -> 290044.2871 | E41: ='Inputs and Assumptions'!H30 -> 281342.9584 | F41: ='Inputs and Assumptions'!I30 -> 272902.6697 | H41: Load Control (Non-capital) | I41: ='Inputs and Assumptions'!E42 -> 621296.6687 | J41: ='Inputs and Assumptions'!F42 -> 602657.7687 | K41: ='Inputs and Assumptions'!G42 -> 584578.0356 | L41: ='Inputs and Assumptions'!H42 -> 567040.6945 | M41: ='Inputs and Assumptions'!I42 -> 550029.4737
A42: Total | B42: =SUM(B39:B41) -> 2287048.105 | C42: =SUM(C39:C41) -> 2218436.661 | D42: =SUM(D39:D41) -> 2151883.562 | E42: 2087327.055 | F42: 2024707.243 | H42: Load Control (Capital) | I42: ='Inputs and Assumptions'!E43 -> 712568 | J42: ='Inputs and Assumptions'!F43 -> 712568 | K42: ='Inputs and Assumptions'!G43 -> 712568 | L42: ='Inputs and Assumptions'!H43 -> 712568 | M42: ='Inputs and Assumptions'!I43 -> 712568
H43: Solar PV (Non-capital) | I43: ='Inputs and Assumptions'!E44 -> 285185.6703 | J43: ='Inputs and Assumptions'!F44 -> 276630.1002 | K43: ='Inputs and Assumptions'!G44 -> 268331.1972 | L43: ='Inputs and Assumptions'!H44 -> 260281.2613 | M43: ='Inputs and Assumptions'!I44 -> 252472.8235
A44: Relationships | H44: Solar PV (Capital) | I44: ='Inputs and Assumptions'!E45 -> 311438 | J44: ='Inputs and Assumptions'!F45 -> 311438 | K44: ='Inputs and Assumptions'!G45 -> 311438 | L44: ='Inputs and Assumptions'!H45 -> 311438 | M44: ='Inputs and Assumptions'!I45 -> 311438
B45: Factor | C45: Notes:
A46: Primary | B46: 1 | C46: Weighted based on meter population
A47: Load Control | B47: 0.3 | C47: Cost of Single Phase single element meter only
A48: Solar PV | B48: 0.7 | C48: Based on 75% meter replacement vs meter reprogram
A50: Revenue Weights (%)
A51: Year | B51: 2020-21 | C51: 2021-22 | D51: 2022-23 | E51: 2023-24 | F51: 2024-25
A52: Primary | B52: =B39*$B$46/SUMPRODUCT(B$39:B$41,$B$46:$B$48) -> 0.7617564215 | C52: =C39*$B$46/SUMPRODUCT(C$39:C$41,$B$46:$B$48) -> 0.7617564215 | D52: 0.7617564215 | E52: 0.7617564215 | F52: 0.7617564215
A53: Load Control | B53: =B40*$B$47/SUMPRODUCT(B$39:B$41,$B$46:$B$48) -> 0.1138068332 | C53: =C40*$B$47/SUMPRODUCT(C$39:C$41,$B$46:$B$48) -> 0.1138068332 | D53: 0.1138068332 | E53: 0.1138068332 | F53: 0.1138068332
A54: Solar PV | B54: =B41*$B$48/SUMPRODUCT(B$39:B$41,$B$46:$B$48) -> 0.1244367453 | C54: =C41*$B$48/SUMPRODUCT(C$39:C$41,$B$46:$B$48) -> 0.1244367453 | D54: 0.1244367453 | E54: 0.1244367453 | F54: 0.1244367453
A56: Building Blocks ($m, nominal)
B57: 2020-21 | C57: 2021-22 | D57: 2022-23 | E57: 2023-24 | F57: 2024-25
A58: Return on Capital | B58: ='(EGX&EGN) Building Blocks'!B8 -> 18.50493994 | C58: ='(EGX&EGN) Building Blocks'!C8 -> 17.1379257 | D58: ='(EGX&EGN) Building Blocks'!D8 -> 15.70939441 | E58: ='(EGX&EGN) Building Blocks'!E8 -> 14.23059224 | F58: ='(EGX&EGN) Building Blocks'!F8 -> 12.67955889
A59: Return of Capital (regulatory depreciation) | B59: ='(EGX&EGN) Building Blocks'!B9 -> 24.60715542 | C59: ='(EGX&EGN) Building Blocks'!C9 -> 26.16092057 | D59: ='(EGX&EGN) Building Blocks'!D9 -> 27.79356678 | E59: ='(EGX&EGN) Building Blocks'!E9 -> 29.52349224 | F59: ='(EGX&EGN) Building Blocks'!F9 -> 30.61857835
A60: Operating Expenditure | B60: ='(EGX&EGN) Building Blocks'!B10 -> 19.67665234 | C60: ='(EGX&EGN) Building Blocks'!C10 -> 19.61898106 | D60: ='(EGX&EGN) Building Blocks'!D10 -> 19.59524161 | E60: ='(EGX&EGN) Building Blocks'!E10 -> 19.58408776 | F60: ='(EGX&EGN) Building Blocks'!F10 -> 19.58202564
A61: Revenue Adjustments | B61: ='(EGX&EGN) Building Blocks'!B11 -> 0 | C61: ='(EGX&EGN) Building Blocks'!C11 -> 0 | D61: ='(EGX&EGN) Building Blocks'!D11 -> 0 | E61: ='(EGX&EGN) Building Blocks'!E11 -> 0 | F61: ='(EGX&EGN) Building Blocks'!F11 -> 0
A62: Net Tax Allowance | B62: ='(EGX&EGN) Building Blocks'!B12 -> 1.938305913 | C62: ='(EGX&EGN) Building Blocks'!C12 -> 2.043594356 | D62: ='(EGX&EGN) Building Blocks'!D12 -> 2.151969109 | E62: ='(EGX&EGN) Building Blocks'!E12 -> 2.354192616 | F62: ='(EGX&EGN) Building Blocks'!F12 -> 2.399718816
A63: Annual Revenue Requirement (unsmoothed) | B63: ='(EGX&EGN) Building Blocks'!B13 -> 64.72705362 | C63: ='(EGX&EGN) Building Blocks'!C13 -> 64.96142168 | D63: ='(EGX&EGN) Building Blocks'!D13 -> 65.2501719 | E63: ='(EGX&EGN) Building Blocks'!E13 -> 65.69236486 | F63: ='(EGX&EGN) Building Blocks'!F13 -> 65.27988169
A65: Unsmoothed Revenue Allocation between Metering Type ($m, nominal)
B66: 2020-21 | C66: 2021-22 | D66: 2022-23 | E66: 2023-24 | F66: 2024-25
A67: Primary (Non-Capital) | B67: =B60*B52 -> 14.98881628 | C67: =C60*C52 -> 14.94488481 | D67: 14.92680113 | E67: 14.91830461 | F67: 14.91673378
A68: Primary (Capital) | B68: =(B58+B59+B62)*B52 -> 34.31743247 | C68: =(C58+C59+C62)*C52 -> 34.53989531 | D68: 34.77793633 | E68: 35.12327617 | F68: 34.8106353
A69: Load Control (Non-Capital) | B69: =B60*B53 -> 2.239337491 | C69: =C60*C53 -> 2.232774104 | D69: 2.230072392 | E69: 2.228803008 | F69: 2.228568325
A70: Load Control (Capital) | B70: =(B58+B59+B62)*B53 -> 5.127043502 | C70: =(C58+C59+C62)*C53 -> 5.160279576 | D70: 5.195843035 | E70: 5.247437 | F70: 5.20072828
A71: Solar PV (Non-Capital) | B71: =B60*B54 -> 2.448498576 | C71: =C60*C54 -> 2.441322149 | D71: 2.438368089 | E71: 2.43698014 | F71: 2.436723537
A72: Solar PV (Capital) | B72: =(B58+B59+B62)*B54 -> 5.605925309 | C72: =(C58+C59+C62)*C54 -> 5.642265735 | D72: 5.681150932 | E72: 5.737563934 | F72: 5.686492474
A73: Annual Revenue Requirement (unsmoothed) | B73: =SUM(B67:B72) -> 64.72705362 | C73: =SUM(C67:C72) -> 64.96142168 | D73: 65.2501719 | E73: 65.69236486 | F73: 65.27988169
A75: Unsmoothed Revenue Allocation ($m, nominal)
B76: 2020-21 | C76: 2021-22 | D76: 2022-23 | E76: 2023-24 | F76: 2024-25 | H76: NPV
A77: Non-Capital Revenue (unsmoothed) | B77: =B60 -> 19.67665234 | C77: =C60 -> 19.61898106 | D77: 19.59524161 | E77: 19.58408776 | F77: 19.58202564 | H77: =NPV('Inputs and Assumptions'!$E$81, 'Energex Smoothed Charges'!B77:F77) -> 83.85125282
A78: Capital Revenue (unsmoothed) | B78: =B58+B59+B62 -> 45.05040128 | C78: =C58+C59+C62 -> 45.34244063 | D78: 45.65493029 | E78: 46.10827711 | F78: 45.69785605 | H78: =NPV('Inputs and Assumptions'!$E$81, 'Energex Smoothed Charges'!B78:F78) -> 194.7251738
A79: Annual Revenue Requirement (unsmoothed) | B79: =B77+B78 -> 64.72705362 | C79: =C77+C78 -> 64.96142168 | D79: 65.2501719 | E79: 65.69236486 | F79: 65.27988169 | H79: =NPV('Inputs and Assumptions'!$E$81, 'Energex Smoothed Charges'!B79:F79) -> 278.5764266
A81: Calculated Revenue Allocation ($m, nominal)
B82: 2020-21 | C82: 2021-22 | D82: 2022-23 | E82: 2023-24 | F82: 2024-25 | H82: NPV
A83: Non-Capital Revenue (smoothed) | B83: =(B9*I39+B15*I41+B21*I43)/1000000 -> 19.85761597 | C83: =(C9*J39+C15*J41+C21*J43)/1000000 -> 19.72802517 | D83: 19.59928007 | E83: 19.47137517 | F83: 19.34430498 | H83: =NPV('Inputs and Assumptions'!$E$81, 'Energex Smoothed Charges'!B83:F83) -> 83.8509706
A84: Capital Revenue (smoothed) | B84: =(B10*I40+B16*I42+B22*I44)/1000000 -> 43.50707909 | C84: =(C10*J40+C16*J42+C22*J44)/1000000 -> 44.5599504 | D84: 45.6383012 | E84: 46.74274809 | F84: 47.87392259 | H84: =NPV('Inputs and Assumptions'!$E$81, 'Energex Smoothed Charges'!B84:F84) -> 194.7251738
A85: Annual Revenue Requirement (smoothed) | B85: =B83+B84 -> 63.36469505 | C85: =C83+C84 -> 64.28797557 | D85: =D83+D84 -> 65.23758127 | E85: =E83+E84 -> 66.21412326 | F85: =F83+F84 -> 67.21822757 | H85: =NPV('Inputs and Assumptions'!$E$81, 'Energex Smoothed Charges'!B85:F85) -> 278.5761443
F88: Difference in Final Year Revenue | H88: NPV Difference
F89: =F85/F79-1 -> 0.0296928522 | H89: =H77-H83 -> 0.0002822263853
H90: =H78-H84 -> 0
A93: Notes
A94: - Values in green cells were sourced from the AER's preliminary decision Energex - Metering Pricing Model - April 2015.xlsx
A98: Return to top

Sheet Ergon Smoothed Charges
A1: Ergon Smoothed Charges
F3: =IF(ROUND((Ergon_Non_Capital_NPV_Difference+Ergon_Capital_NPV_Difference),5)<>ROUND(0, 5),"Charges not smoothed. Press button to smooth charges.", "Smoothing complete.") -> Charges not smoothed. Press button to smooth charges.
A5: Smoothed Charges
A7: Primary ($, nominal) | H7: Primary (cents per day, nominal)
B8: 2020-21 | C8: 2021-22 | D8: 2022-23 | E8: 2023-24 | F8: 2024-25 | I8: 2020-21 | J8: 2021-22 | K8: 2022-23 | L8: 2023-24 | M8: 2024-25
A9: Non-capital | B9: =B67*1000000/B39*(1-B34) -> 39.04918855 | C9: =B9*(1+C30)*(1-C34) -> 39.99417891 | D9: =C9*(1+D30)*(1-D34) -> 40.96203804 | E9: =D9*(1+E30)*(1-E34) -> 41.95331936 | F9: =E9*(1+F30)*(1-F34) -> 42.96858969 | H9: Non-capital | I9: =B9/365*100 -> 10.69840782 | J9: =C9/365*100 -> 10.95730929 | K9: 11.22247618 | L9: 11.4940601 | M9: 11.77221635
A10: Capital | B10: =B68*1000000/B39*(1-B35) -> 11.74220815 | C10: =B10*(1+C30)*(1-C35) -> 12.02636959 | D10: =C10*(1+D30)*(1-D35) -> 12.31740773 | E10: =D10*(1+E30)*(1-E35) -> 12.615489 | F10: =E10*(1+F30)*(1-F35) -> 12.92078383 | H10: Capital | I10: =B10/365*100 -> 3.217043329 | J10: 3.294895777 | K10: 3.374632255 | L10: 3.456298356 | M10: 3.539940776
A11: Total | B11: =B9+B10 -> 50.7913967 | C11: =C9+C10 -> 52.0205485 | D11: 53.27944577 | E11: 54.56880836 | F11: 55.88937352 | H11: Total | I11: =I9+I10 -> 13.91545115 | J11: =J9+J10 -> 14.25220507 | K11: 14.59710843 | L11: 14.95035845 | M11: 15.31215713
A13: Load Control ($, nominal) | H13: Load Control (cents per day, nominal)
B14: 2020-21 | C14: 2021-22 | D14: 2022-23 | E14: 2023-24 | F14: 2024-25 | I14: 2020-21 | J14: 2021-22 | K14: 2022-23 | L14: 2023-24 | M14: 2024-25
A15: Non-capital | B15: =B69*1000000/B40*(1-B34) -> 14.35752205 | C15: =B15*(1+C30)*(1-C34) -> 14.70497409 | D15: =C15*(1+D30)*(1-D34) -> 15.06083446 | E15: =D15*(1+E30)*(1-E34) -> 15.42530665 | F15: =E15*(1+F30)*(1-F34) -> 15.79859907 | H15: Non-capital | I15: =B15/365*100 -> 3.933567686 | J15: =C15/365*100 -> 4.028760024 | K15: 4.126256016 | L15: 4.226111412 | M15: 4.328383308
A16: Capital | B16: =B70*1000000/B40*(1-B35) -> 4.317349956 | C16: =B16*(1+C30)*(1-C35) -> 4.421829825 | D16: =C16*(1+D30)*(1-D35) -> 4.528838107 | E16: =D16*(1+E30)*(1-E35) -> 4.638435989 | F16: =E16*(1+F30)*(1-F35) -> 4.75068614 | H16: Capital | I16: =B16/365*100 -> 1.182835604 | J16: 1.211460226 | K16: 1.240777563 | L16: 1.27080438 | M16: 1.301557846
A17: Total | B17: =B15+B16 -> 18.67487201 | C17: =C15+C16 -> 19.12680391 | D17: 19.58967257 | E17: 20.06374264 | F17: 20.54928521 | H17: Total | I17: =I15+I16 -> 5.11640329 | J17: =J15+J16 -> 5.24022025 | K17: 5.36703358 | L17: 5.496915792 | M17: 5.629941155
A19: Solar PV ($, nominal) | H19: Solar PV (cents per day, nominal)
B20: 2020-21 | C20: 2021-22 | D20: 2022-23 | E20: 2023-24 | F20: 2024-25 | I20: 2020-21 | J20: 2021-22 | K20: 2022-23 | L20: 2023-24 | M20: 2024-25
A21: Non-capital | B21: =B71*1000000/B41*(1-B34) -> 9.710292581 | C21: =B21*(1+C30)*(1-C34) -> 9.945281661 | D21: =C21*(1+D30)*(1-D34) -> 10.18595748 | E21: =D21*(1+E30)*(1-E34) -> 10.43245765 | F21: =E21*(1+F30)*(1-F34) -> 10.68492312 | H21: Non-capital | I21: =B21/365*100 -> 2.660354132 | J21: =C21/365*100 -> 2.724734702 | K21: 2.790673282 | L21: 2.858207575 | M21: 2.927376198
A22: Capital | B22: =B72*1000000/B41*(1-B35) -> 2.919914111 | C22: =B22*(1+C30)*(1-C35) -> 2.990576033 | D22: =C22*(1+D30)*(1-D35) -> 3.062947973 | E22: =D22*(1+E30)*(1-E35) -> 3.137071314 | F22: =E22*(1+F30)*(1-F35) -> 3.21298844 | H22: Capital | I22: =B22/365*100 -> 0.7999764688 | J22: 0.8193358994 | K22: 0.8391638282 | L22: 0.8594715928 | M22: 0.8802708053
A23: Total | B23: =B21+B22 -> 12.63020669 | C23: =C21+C22 -> 12.93585769 | D23: 13.24890545 | E23: 13.56952896 | F23: 13.89791156 | H23: Total | I23: =I21+I22 -> 3.460330601 | J23: =J21+J22 -> 3.544070601 | K23: 3.62983711 | L23: 3.717679168 | M23: 3.807647004
A26: Calculations
A28: Inflation
A29: Year | B29: 2020-21 | C29: 2021-22 | D29: 2022-23 | E29: 2023-24 | F29: 2024-25
A30: Inflation Assumption (CPI % increase) (constant) | B30: ='Inputs and Assumptions'!E75 -> 0.0242 | C30: ='Inputs and Assumptions'!F75 -> 0.0242 | D30: ='Inputs and Assumptions'!G75 -> 0.0242 | E30: ='Inputs and Assumptions'!H75 -> 0.0242 | F30: ='Inputs and Assumptions'!I75 -> 0.0242
A32: X-Factor (used to determine annual metering charges)
A33: Year | B33: 2020-21 | C33: 2021-22 | D33: 2022-23 | E33: 2023-24 | F33: 2024-25
A34: X-Factor (non-capital) | B34: -0.02445938743 | C34: 0 | D34: 0 | E34: 0 | F34: 0
A35: X-Factor (capital) | B35: 0.1597457909 | C35: 0 | D35: 0 | E35: 0 | F35: 0
A37: Network Tariff Code (NTC) | H37: Customers by Tariff Code
A38: Year | B38: 2020-21 | C38: 2021-22 | D38: 2022-23 | E38: 2023-24 | F38: 2024-25 | H38: Year | I38: 2020-21 | J38: 2021-22 | K38: 2022-23 | L38: 2023-24 | M38: 2024-25
A39: Primary | B39: ='Inputs and Assumptions'!E32 -> 623087.4491 | C39: ='Inputs and Assumptions'!F32 -> 573240.4532 | D39: ='Inputs and Assumptions'!G32 -> 527381.2169 | E39: ='Inputs and Assumptions'!H32 -> 485190.7196 | F39: ='Inputs and Assumptions'!I32 -> 446375.462 | H39: Primary (Non-capital) | I39: ='Inputs and Assumptions'!E47 -> 607419.4678 | J39: ='Inputs and Assumptions'!F47 -> 558825.9104 | K39: ='Inputs and Assumptions'!G47 -> 514119.8376 | L39: ='Inputs and Assumptions'!H47 -> 472990.2506 | M39: ='Inputs and Assumptions'!I47 -> 435151.0305
A40: Load Control | B40: ='Inputs and Assumptions'!E33 -> 343381.1621 | C40: ='Inputs and Assumptions'!F33 -> 315910.6691 | D40: ='Inputs and Assumptions'!G33 -> 290637.8156 | E40: ='Inputs and Assumptions'!H33 -> 267386.7904 | F40: ='Inputs and Assumptions'!I33 -> 245995.8471 | H40: Primary (Capital) | I40: ='Inputs and Assumptions'!E48 -> 777218 | J40: ='Inputs and Assumptions'!F48 -> 777218 | K40: ='Inputs and Assumptions'!G48 -> 777218 | L40: ='Inputs and Assumptions'!H48 -> 777218 | M40: ='Inputs and Assumptions'!I48 -> 777218
A41: Solar PV | B41: ='Inputs and Assumptions'!E34 -> 107863.0831 | C41: ='Inputs and Assumptions'!F34 -> 99234.03643 | D41: ='Inputs and Assumptions'!G34 -> 91295.31351 | E41: ='Inputs and Assumptions'!H34 -> 83991.68843 | F41: ='Inputs and Assumptions'!I34 -> 77272.35336 | H41: Load Control (Non-capital) | I41: ='Inputs and Assumptions'!E49 -> 335790.5115 | J41: ='Inputs and Assumptions'!F49 -> 308927.2706 | K41: ='Inputs and Assumptions'!G49 -> 284213.0889 | L41: ='Inputs and Assumptions'!H49 -> 261476.0418 | M41: ='Inputs and Assumptions'!I49 -> 240557.9585
A42: Total | B42: =SUM(B39:B41) -> 1074331.694 | C42: =SUM(C39:C41) -> 988385.1587 | D42: 909314.346 | E42: 836569.1983 | F42: 769643.6625 | H42: Load Control (Capital) | I42: ='Inputs and Assumptions'!E50 -> 433510 | J42: ='Inputs and Assumptions'!F50 -> 433510 | K42: ='Inputs and Assumptions'!G50 -> 433510 | L42: ='Inputs and Assumptions'!H50 -> 433510 | M42: ='Inputs and Assumptions'!I50 -> 433510
H43: Solar PV (Non-capital) | I43: ='Inputs and Assumptions'!E51 -> 106893.6165 | J43: ='Inputs and Assumptions'!F51 -> 98342.12719 | K43: ='Inputs and Assumptions'!G51 -> 90474.75702 | L43: ='Inputs and Assumptions'!H51 -> 83236.77645 | M43: ='Inputs and Assumptions'!I51 -> 76577.83434
A44: Relationships | H44: Solar PV (Capital) | I44: ='Inputs and Assumptions'!E52 -> 122277 | J44: ='Inputs and Assumptions'!F52 -> 122277 | K44: ='Inputs and Assumptions'!G52 -> 122277 | L44: ='Inputs and Assumptions'!H52 -> 122277 | M44: ='Inputs and Assumptions'!I52 -> 122277
B45: Factor
A46: Primary | B46: 1
A47: Load Control | B47: 0.3676778593
A48: Solar PV | B48: 0.2486682295
A50: Revenue Weights (%)
A51: Year | B51: 2020-21 | C51: 2021-22 | D51: 2022-23 | E51: 2023-24 | F51: 2024-25
A52: Primary | B52: =B39*$B$46/SUMPRODUCT(B$39:B$41,$B$46:$B$48) -> 0.8027788895 | C52: =C39*$B$46/SUMPRODUCT(C$39:C$41,$B$46:$B$48) -> 0.8027788895 | D52: 0.8027788895 | E52: 0.8027788895 | F52: 0.8027788895
A53: Load Control | B53: =B40*$B$47/SUMPRODUCT(B$39:B$41,$B$46:$B$48) -> 0.1626637891 | C53: =C40*$B$47/SUMPRODUCT(C$39:C$41,$B$46:$B$48) -> 0.1626637891 | D53: 0.1626637891 | E53: 0.1626637891 | F53: 0.1626637891
A54: Solar PV | B54: =B41*$B$48/SUMPRODUCT(B$39:B$41,$B$46:$B$48) -> 0.03455732139 | C54: =C41*$B$48/SUMPRODUCT(C$39:C$41,$B$46:$B$48) -> 0.03455732139 | D54: 0.03455732139 | E54: 0.03455732139 | F54: 0.03455732139
A56: Building Blocks ($m, nominal)
B57: 2020-21 | C57: 2021-22 | D57: 2022-23 | E57: 2023-24 | F57: 2024-25
A58: Return on Capital | B58: ='(EGX&EGN) Building Blocks'!K8 -> 4.514430702 | C58: ='(EGX&EGN) Building Blocks'!L8 -> 4.360165048 | D58: ='(EGX&EGN) Building Blocks'!M8 -> 4.178430791 | E58: ='(EGX&EGN) Building Blocks'!N8 -> 3.951442738 | F58: ='(EGX&EGN) Building Blocks'!O8 -> 3.655648164
A59: Return of Capital (regulatory depreciation) | B59: ='(EGX&EGN) Building Blocks'!K9 -> 6.128776999 | C59: ='(EGX&EGN) Building Blocks'!L9 -> 6.857245958 | D59: ='(EGX&EGN) Building Blocks'!M9 -> 7.618011409 | E59: ='(EGX&EGN) Building Blocks'!N9 -> 8.397124334 | F59: ='(EGX&EGN) Building Blocks'!O9 -> 8.657481619
A60: Operating Expenditure | B60: ='(EGX&EGN) Building Blocks'!K10 -> 29.58491508 | C60: ='(EGX&EGN) Building Blocks'!L10 -> 27.78280095 | D60: ='(EGX&EGN) Building Blocks'!M10 -> 26.19611724 | E60: ='(EGX&EGN) Building Blocks'!N10 -> 24.76318357 | F60: ='(EGX&EGN) Building Blocks'!O10 -> 23.46519986
A61: Revenue Adjustments | B61: ='(EGX&EGN) Building Blocks'!K11 -> 0 | C61: ='(EGX&EGN) Building Blocks'!L11 -> 0 | D61: ='(EGX&EGN) Building Blocks'!M11 -> 0 | E61: ='(EGX&EGN) Building Blocks'!N11 -> 0 | F61: ='(EGX&EGN) Building Blocks'!O11 -> 0
A62: Net Tax Allowance | B62: ='(EGX&EGN) Building Blocks'!K12 -> 0.2033551683 | C62: ='(EGX&EGN) Building Blocks'!L12 -> 0.2194945888 | D62: ='(EGX&EGN) Building Blocks'!M12 -> 0.2381629303 | E62: ='(EGX&EGN) Building Blocks'!N12 -> 0.3586487997 | F62: ='(EGX&EGN) Building Blocks'!O12 -> 0.3642480255
A63: Annual Revenue Requirement (unsmoothed) | B63: ='(EGX&EGN) Building Blocks'!K13 -> 40.43147795 | C63: ='(EGX&EGN) Building Blocks'!L13 -> 39.21970654 | D63: ='(EGX&EGN) Building Blocks'!M13 -> 38.23072237 | E63: ='(EGX&EGN) Building Blocks'!N13 -> 37.47039945 | F63: ='(EGX&EGN) Building Blocks'!O13 -> 36.14257767
A65: Unsmoothed Revenue Allocation between Metering Type ($m, nominal)
B66: 2020-21 | C66: 2021-22 | D66: 2022-23 | E66: 2023-24 | F66: 2024-25
A67: Primary (Non-Capital) | B67: =B60*B52 -> 23.75014528 | C67: =C60*C52 -> 22.30344609 | D67: 21.02968991 | E67: 19.87936101 | F67: 18.83736709
A68: Primary (Capital) | B68: =(B58+B59+B62)*B52 -> 8.707391695 | C68: =(C58+C59+C62)*C52 -> 9.181306373 | D68: 9.661126942 | E68: 10.20108465 | F68: 10.17713128
A69: Load Control (Non-Capital) | B69: =B60*B53 -> 4.812394389 | C69: =C60*C53 -> 4.519255675 | D69: 4.261159692 | E69: 4.028073271 | F69: 3.816938322
A70: Load Control (Capital) | B70: =(B58+B59+B62)*B53 -> 1.764343015 | C70: =(C58+C59+C62)*C53 -> 1.8603704 | D70: 1.957594471 | E70: 2.067003883 | F70: 2.062150311
A71: Solar PV (Non-Capital) | B71: =B60*B54 -> 1.022375419 | C71: =C60*C54 -> 0.9600991814 | D71: 0.9052676428 | E71: 0.8557492934 | F71: 0.8108944531
A72: Solar PV (Capital) | B72: =(B58+B59+B62)*B54 -> 0.3748281591 | C72: =(C58+C59+C62)*C54 -> 0.3952288224 | D72: 0.4158837173 | E72: 0.4391273428 | F72: 0.4380962193
A73: Annual Revenue Requirement (unsmoothed) | B73: =SUM(B67:B72) -> 40.43147795 | C73: =SUM(C67:C72) -> 39.21970654 | D73: 38.23072237 | E73: 37.47039945 | F73: 36.14257767
A75: Unsmoothed Revenue Allocation ($m, nominal)
B76: 2020-21 | C76: 2021-22 | D76: 2022-23 | E76: 2023-24 | F76: 2024-25 | H76: NPV
A77: Non-Capital Revenue (unsmoothed) | B77: =B60 -> 29.58491508 | C77: =C60 -> 27.78280095 | D77: 26.19611724 | E77: 24.76318357 | F77: 23.46519986 | H77: =NPV('Inputs and Assumptions'!$E$81, 'Ergon Smoothed Charges'!B77:F77) -> 113.3793052
A78: Capital Revenue (unsmoothed) | B78: =B58+B59+B62 -> 10.84656287 | C78: =C58+C59+C62 -> 11.4369056 | D78: 12.03460513 | E78: 12.70721587 | F78: 12.67737781 | H78: =NPV('Inputs and Assumptions'!$E$81, 'Ergon Smoothed Charges'!B78:F78) -> 50.82187913
A79: Annual Revenue Requirement (unsmoothed) | B79: =B77+B78 -> 40.43147795 | C79: =C77+C78 -> 39.21970654 | D79: 38.23072237 | E79: 37.47039945 | F79: 36.14257767 | H79: =NPV('Inputs and Assumptions'!$E$81, 'Ergon Smoothed Charges'!B79:F79) -> 164.2011844
A81: Calculated Revenue Allocation ($m, nominal)
B82: 2020-21 | C82: 2021-22 | D82: 2022-23 | E82: 2023-24 | F82: 2024-25 | H82: NPV
A83: Non-Capital Revenue (smoothed) | B83: =(B9*I39+B15*I41+B21*I43)/1000000 -> 29.57832529 | C83: =(C9*J39+C15*J41+C21*J43)/1000000 -> 27.8705911 | D83: 26.26145466 | E83: 24.74522331 | F83: 23.3165331 | H83: =NPV('Inputs and Assumptions'!$E$81, 'Ergon Smoothed Charges'!B83:F83) -> 113.3792081
A84: Capital Revenue (smoothed) | B84: =(B10*I40+B16*I42+B22*I44)/1000000 -> 11.35490825 | C84: =(C10*J40+C16*J42+C22*J44)/1000000 -> 11.62969703 | D84: 11.9111357 | E84: 12.19938518 | F84: 12.4946103 | H84: =NPV('Inputs and Assumptions'!$E$81, 'Ergon Smoothed Charges'!B84:F84) -> 50.82130376
A85: Annual Revenue Requirement (smoothed) | B85: =B83+B84 -> 40.93323354 | C85: =C83+C84 -> 39.50028813 | D85: =D83+D84 -> 38.17259035 | E85: =E83+E84 -> 36.94460849 | F85: =F83+F84 -> 35.8111434 | H85: =NPV('Inputs and Assumptions'!$E$81, 'Ergon Smoothed Charges'!B85:F85) -> 164.2005118
F88: Difference in Final Year Revenue | H88: NPV Difference
F89: =F85/F79-1 -> -0.009170189085 | H89: =H77-H83 -> 9.718767716e-05
H90: =H78-H84 -> 0.0005753710221
A93: Notes
A94: - Values in green cells were sourced from the AER's preliminary decision Ergon Energy - Metering Pricing Model - April 2015.xlsx
A98: Return to top
